[Event "Titled Tuesday Blitz June 13 Early 2023"]
[White "campochess"]
[Black "Ansh M Shah"]
[BlackFideId "25033379"]
[WhiteElo "2192"]
[BlackElo "2084"]
[Result "0-1"]
[Round "7"]
[TimeControl "180+2"]
[Date "2023.06.13"]
[WhiteClock "0:00:00"]
[BlackClock "0:00:44"]
[Board "160"]

1. e4 {[%clk 0:02:53]}  c6 {[%clk 0:03:00]} 2. d4 {[%clk 0:02:52]}  d5 {[%clk 0:03:01]} 3. exd5 {[%clk 0:02:52]}  cxd5 {[%clk 0:02:54]} 4. c4 {[%clk 0:02:52]}  Nf6 {[%clk 0:02:55]} 5. Nc3 {[%clk 0:02:52]}  Nc6 {[%clk 0:02:55]} 6. Bg5 {[%clk 0:02:51]}  dxc4 {[%clk 0:02:53]} 7. d5 {[%clk 0:02:51]}  Ne5 {[%clk 0:02:52]} 8. Bxc4 {[%clk 0:02:47]}  Nxc4 {[%clk 0:02:51]} 9. Qa4+ {[%clk 0:02:47]}  Bd7 {[%clk 0:02:51]} 10. Qxc4 {[%clk 0:02:47]}  h6 {[%clk 0:02:49]} 11. Bxf6 {[%clk 0:02:46]}  exf6 {[%clk 0:02:50]} 12. Nf3 {[%clk 0:02:46]}  Bd6 {[%clk 0:02:48]} 13. O-O {[%clk 0:02:43]}  O-O {[%clk 0:02:48]} 14. Rfe1 {[%clk 0:02:39]}  Rc8 {[%clk 0:02:41]} 15. Qd3 {[%clk 0:02:39]}  a6 {[%clk 0:02:41]} 16. Rad1 {[%clk 0:02:38]}  b5 {[%clk 0:02:40]} 17. Ne4 {[%clk 0:02:37]}  Bf5 {[%clk 0:02:37]} 18. Nd4 {[%clk 0:02:35]}  Bg6 {[%clk 0:02:35]} 19. Nc6 {[%clk 0:02:31]}  Qd7 {[%clk 0:02:35]} 20. Qd4 {[%clk 0:02:17]}  Rfe8 {[%clk 0:02:34]} 21. f3 {[%clk 0:02:10]}  Bf8 {[%clk 0:02:13]} 22. Kh1 {[%clk 0:02:02]}  f5 {[%clk 0:02:12]} 23. Ne5 {[%clk 0:00:47]}  Rxe5 {[%clk 0:02:07]} 24. Qxe5 {[%clk 0:00:47]}  fxe4 {[%clk 0:02:07]} 25. fxe4 {[%clk 0:00:47]}  Bd6 {[%clk 0:02:05]} 26. Qd4 {[%clk 0:00:45]}  f6 {[%clk 0:02:04]} 27. Rc1 {[%clk 0:00:42]}  Rd8 {[%clk 0:01:55]} 28. Qb6 {[%clk 0:00:39]}  Be5 {[%clk 0:01:44]} 29. Qxa6 {[%clk 0:00:32]}  Bxb2 {[%clk 0:01:44]} 30. Rc6 {[%clk 0:00:31]}  b4 {[%clk 0:01:40]} 31. Qc4 {[%clk 0:00:28]}  Bc3 {[%clk 0:01:40]} 32. Re2 {[%clk 0:00:22]}  Bf7 {[%clk 0:01:33]} 33. a3 {[%clk 0:00:21]}  Ra8 {[%clk 0:01:14]} 34. h3 {[%clk 0:00:19]}  Rxa3 {[%clk 0:01:12]} 35. Rc8+ {[%clk 0:00:17]}  Kh7 {[%clk 0:01:12]} 36. Rc7 {[%clk 0:00:18]}  Qe8 {[%clk 0:01:12]} 37. Qc6 {[%clk 0:00:15]}  Qxc6 {[%clk 0:01:11]} 38. dxc6 {[%clk 0:00:16]}  Ra6 {[%clk 0:01:11]} 39. Rxf7 {[%clk 0:00:15]}  Rxc6 {[%clk 0:01:10]} 40. Rd7 {[%clk 0:00:14]}  Rb6 {[%clk 0:01:10]} 41. Rd3 {[%clk 0:00:12]}  Be5 {[%clk 0:01:08]} 42. Rb3 {[%clk 0:00:09]}  Ra6 {[%clk 0:01:07]} 43. g4 {[%clk 0:00:09]}  Ra3 {[%clk 0:01:04]} 44. Rxb4 {[%clk 0:00:09]}  Rxh3+ {[%clk 0:01:03]} 45. Kg1 {[%clk 0:00:09]}  Rg3+ {[%clk 0:01:04]} 46. Rg2 {[%clk 0:00:09]}  Re3 {[%clk 0:01:00]} 47. Kf1 {[%clk 0:00:09]}  Bg3 {[%clk 0:00:58]} 48. Re2 {[%clk 0:00:09]}  Rd3 {[%clk 0:00:56]} 49. Kg2 {[%clk 0:00:08]}  Be5 {[%clk 0:00:56]} 50. Ra4 {[%clk 0:00:06]}  Rg3+ {[%clk 0:00:56]} 51. Kf2 {[%clk 0:00:05]}  Rxg4 {[%clk 0:00:56]} 52. Re3 {[%clk 0:00:03]}  Rh4 {[%clk 0:00:54]} 53. Kg2 {[%clk 0:00:03]}  Rh2+ {[%clk 0:00:53]} 54. Kf1 {[%clk 0:00:03]}  h5 {[%clk 0:00:51]} 55. Rf3 {[%clk 0:00:03]}  h4 {[%clk 0:00:50]} 56. Rf5 {[%clk 0:00:03]}  Kg6 {[%clk 0:00:49]} 57. Rxe5 {[%clk 0:00:02]}  fxe5 {[%clk 0:00:48]} 58. Ra6+ {[%clk 0:00:01]}  Kg5 {[%clk 0:00:48]} 59. Ra7 {[%clk 0:00:01]}  g6 {[%clk 0:00:48]} 60. Rf7 {[%clk 0:00:00]}  h3 {[%clk 0:00:44]} 0-1


[Site "https://www.chess.com"]

[Event "Titled Tuesday Blitz June 13 Early 2023"]
[White "LeoLV10"]
[Black "le-castor-faineant"]
[WhiteElo "2419"]
[BlackElo "2203"]
[Result "1-0"]
[Round "7"]
[TimeControl "180+2"]
[Date "2023.06.13"]
[WhiteClock "0:01:51"]
[BlackClock "0:00:09"]
[Board "161"]

1. e4 {[%clk 0:03:00]}  e5 {[%clk 0:02:53]} 2. Nf3 {[%clk 0:02:58]}  Nf6 {[%clk 0:02:50]} 3. Nxe5 {[%clk 0:02:56]}  d6 {[%clk 0:02:50]} 4. Nf3 {[%clk 0:02:56]}  Nxe4 {[%clk 0:02:50]} 5. Nc3 {[%clk 0:02:56]}  Nxc3 {[%clk 0:02:49]} 6. dxc3 {[%clk 0:02:57]}  Be7 {[%clk 0:02:48]} 7. Be3 {[%clk 0:02:58]}  O-O {[%clk 0:02:45]} 8. Qd2 {[%clk 0:02:59]}  a5 {[%clk 0:02:42]} 9. h4 {[%clk 0:02:58]}  a4 {[%clk 0:02:42]} 10. a3 {[%clk 0:02:56]}  Nc6 {[%clk 0:02:40]} 11. O-O-O {[%clk 0:02:56]}  Bf5 {[%clk 0:02:35]} 12. Rg1 {[%clk 0:02:56]}  Na5 {[%clk 0:02:34]} 13. g4 {[%clk 0:02:56]}  Be4 {[%clk 0:02:33]} 14. Nd4 {[%clk 0:02:55]}  Qd7 {[%clk 0:02:33]} 15. f3 {[%clk 0:02:51]}  Bc6 {[%clk 0:02:27]} 16. g5 {[%clk 0:02:46]}  d5 {[%clk 0:02:22]} 17. h5 {[%clk 0:02:43]}  Nc4 {[%clk 0:02:13]} 18. Bxc4 {[%clk 0:02:43]}  dxc4 {[%clk 0:02:14]} 19. g6 {[%clk 0:02:43]}  fxg6 {[%clk 0:02:05]} 20. hxg6 {[%clk 0:02:43]}  h6 {[%clk 0:01:59]} 21. Qe2 {[%clk 0:02:39]}  Rae8 {[%clk 0:01:46]} 22. Kb1 {[%clk 0:02:22]}  Bf6 {[%clk 0:01:39]} 23. Qxc4+ {[%clk 0:02:17]}  Bd5 {[%clk 0:01:28]} 24. Qd3 {[%clk 0:02:17]}  Bxd4 {[%clk 0:01:17]} 25. Qxd4 {[%clk 0:02:13]}  Rxf3 {[%clk 0:01:07]} 26. Bc1 {[%clk 0:01:52]}  c6 {[%clk 0:00:56]} 27. c4 {[%clk 0:01:51]}  Re4 {[%clk 0:00:14]} 28. Qxe4 {[%clk 0:01:51]}  Bxe4 {[%clk 0:00:09]} 29. Rxd7 {[%clk 0:01:51]} 1-0


[Site "https://www.chess.com"]

[Event "Titled Tuesday Blitz June 13 Early 2023"]
[White "Abduzhaparov"]
[Black "Osuna Vega, Enrique"]
[BlackFideId "2219549"]
[WhiteElo "2418"]
[BlackElo "2181"]
[Result "1-0"]
[Round "7"]
[TimeControl "180+2"]
[Date "2023.06.13"]
[WhiteClock "0:00:13"]
[BlackClock "0:00:00"]
[Board "162"]

1. Nf3 {[%clk 0:02:56]}  c5 {[%clk 0:02:57]} 2. c4 {[%clk 0:02:57]}  Nc6 {[%clk 0:02:56]} 3. d4 {[%clk 0:02:57]}  cxd4 {[%clk 0:02:55]} 4. Nxd4 {[%clk 0:02:58]}  Nf6 {[%clk 0:02:53]} 5. Nc3 {[%clk 0:02:58]}  g6 {[%clk 0:02:53]} 6. e4 {[%clk 0:02:58]}  d6 {[%clk 0:02:50]} 7. Be2 {[%clk 0:02:58]}  Bg7 {[%clk 0:02:49]} 8. Be3 {[%clk 0:02:58]}  O-O {[%clk 0:02:48]} 9. O-O {[%clk 0:02:58]}  Be6 {[%clk 0:02:44]} 10. Rc1 {[%clk 0:02:51]}  Nxd4 {[%clk 0:02:41]} 11. Bxd4 {[%clk 0:02:50]}  Rc8 {[%clk 0:02:38]} 12. b3 {[%clk 0:02:48]}  Nd7 {[%clk 0:02:21]} 13. Be3 {[%clk 0:02:45]}  a5 {[%clk 0:02:18]} 14. f4 {[%clk 0:02:40]}  Nc5 {[%clk 0:02:13]} 15. Bf3 {[%clk 0:02:34]}  b6 {[%clk 0:02:06]} 16. Kh1 {[%clk 0:02:32]}  Bd7 {[%clk 0:01:54]} 17. Re1 {[%clk 0:02:17]}  Bc6 {[%clk 0:01:53]} 18. Bf2 {[%clk 0:02:08]}  Qd7 {[%clk 0:01:42]} 19. Qe2 {[%clk 0:01:56]}  Qb7 {[%clk 0:01:41]} 20. Nd5 {[%clk 0:01:46]}  Rfe8 {[%clk 0:01:21]} 21. f5 {[%clk 0:01:36]}  Bxd5 {[%clk 0:01:02]} 22. exd5 {[%clk 0:01:33]}  Qd7 {[%clk 0:00:39]} 23. fxg6 {[%clk 0:01:29]}  hxg6 {[%clk 0:00:37]} 24. Bg4 {[%clk 0:01:16]}  f5 {[%clk 0:00:24]} 25. Bf3 {[%clk 0:01:17]}  Bf6 {[%clk 0:00:20]} 26. Qe3 {[%clk 0:01:09]}  Kg7 {[%clk 0:00:18]} 27. Re2 {[%clk 0:01:03]}  Rh8 {[%clk 0:00:18]} 28. Rce1 {[%clk 0:01:02]}  Rce8 {[%clk 0:00:16]} 29. Qd2 {[%clk 0:00:50]}  Qc8 {[%clk 0:00:13]} 30. Bd4 {[%clk 0:00:44]}  Qd7 {[%clk 0:00:09]} 31. Qc3 {[%clk 0:00:40]}  Qd8 {[%clk 0:00:07]} 32. a3 {[%clk 0:00:36]}  Rhf8 {[%clk 0:00:06]} 33. b4 {[%clk 0:00:34]}  axb4 {[%clk 0:00:07]} 34. axb4 {[%clk 0:00:35]}  Nd7 {[%clk 0:00:07]} 35. Re6 {[%clk 0:00:33]}  Ne5 {[%clk 0:00:07]} 36. R1xe5 {[%clk 0:00:22]}  Bxe5 {[%clk 0:00:08]} 37. Bxe5+ {[%clk 0:00:20]}  dxe5 {[%clk 0:00:08]} 38. Rxe5 {[%clk 0:00:19]}  e6 {[%clk 0:00:07]} 39. Rxe6+ {[%clk 0:00:17]}  Kg8 {[%clk 0:00:00]} 40. Rxg6+ {[%clk 0:00:13]} 1-0


[Site "https://www.chess.com"]

[Event "Titled Tuesday Blitz June 13 Early 2023"]
[White "Matveeva, Olga"]
[Black "Philippe, Guillaume"]
[WhiteFideId "24107018"]
[BlackFideId "36048763"]
[WhiteElo "2009"]
[BlackElo "2387"]
[Result "1-0"]
[Round "7"]
[TimeControl "180+2"]
[Date "2023.06.13"]
[WhiteClock "0:00:17"]
[BlackClock "0:00:02"]
[Board "163"]

1. d4 {[%clk 0:03:00]}  Nf6 {[%clk 0:03:00]} 2. c4 {[%clk 0:03:01]}  e6 {[%clk 0:03:00]} 3. g3 {[%clk 0:03:00]}  c5 {[%clk 0:02:55]} 4. d5 {[%clk 0:02:59]}  exd5 {[%clk 0:02:55]} 5. cxd5 {[%clk 0:03:00]}  d6 {[%clk 0:02:55]} 6. Nc3 {[%clk 0:03:01]}  g6 {[%clk 0:02:56]} 7. Bg2 {[%clk 0:03:01]}  Bg7 {[%clk 0:02:56]} 8. Nf3 {[%clk 0:03:02]}  O-O {[%clk 0:02:57]} 9. O-O {[%clk 0:03:02]}  Nbd7 {[%clk 0:02:57]} 10. h3 {[%clk 0:03:01]}  Qe7 {[%clk 0:02:51]} 11. Nd2 {[%clk 0:02:40]}  Nh5 {[%clk 0:02:45]} 12. e4 {[%clk 0:02:33]}  Re8 {[%clk 0:02:28]} 13. Re1 {[%clk 0:02:24]}  Ne5 {[%clk 0:02:19]} 14. Qc2 {[%clk 0:02:07]}  Qf8 {[%clk 0:02:16]} 15. f4 {[%clk 0:01:58]}  Nd7 {[%clk 0:02:11]} 16. Kh2 {[%clk 0:01:51]}  a6 {[%clk 0:02:08]} 17. a4 {[%clk 0:01:50]}  f5 {[%clk 0:02:08]} 18. Nc4 {[%clk 0:01:44]}  fxe4 {[%clk 0:02:01]} 19. Nxe4 {[%clk 0:01:43]}  Ndf6 {[%clk 0:01:39]} 20. Ncxd6 {[%clk 0:01:39]}  Bf5 {[%clk 0:01:12]} 21. Nxf5 {[%clk 0:01:37]}  gxf5 {[%clk 0:01:12]} 22. Nxf6+ {[%clk 0:01:33]}  Qxf6 {[%clk 0:01:09]} 23. Bd2 {[%clk 0:01:26]}  Qxb2 {[%clk 0:00:22]} 24. Qxb2 {[%clk 0:01:27]}  Bxb2 {[%clk 0:00:22]} 25. Rab1 {[%clk 0:01:27]}  Rxe1 {[%clk 0:00:22]} 26. Bxe1 {[%clk 0:01:27]}  Re8 {[%clk 0:00:19]} 27. Rxb2 {[%clk 0:01:24]}  Rxe1 {[%clk 0:00:20]} 28. Rxb7 {[%clk 0:01:24]}  Nf6 {[%clk 0:00:17]} 29. d6 {[%clk 0:01:23]}  Rd1 {[%clk 0:00:18]} 30. Rc7 {[%clk 0:01:15]}  Rxd6 {[%clk 0:00:14]} 31. Rxc5 {[%clk 0:01:15]}  Kg7 {[%clk 0:00:12]} 32. Rxf5 {[%clk 0:01:14]}  Rd2 {[%clk 0:00:12]} 33. Re5 {[%clk 0:01:02]}  Kf7 {[%clk 0:00:11]} 34. g4 {[%clk 0:01:00]}  Rd4 {[%clk 0:00:08]} 35. a5 {[%clk 0:00:53]}  Rxf4 {[%clk 0:00:08]} 36. Bb7 {[%clk 0:00:52]}  Rxg4 {[%clk 0:00:03]} 37. Bxa6 {[%clk 0:00:50]}  Ra4 {[%clk 0:00:03]} 38. Bb5 {[%clk 0:00:49]}  Ra2+ {[%clk 0:00:03]} 39. Kg3 {[%clk 0:00:49]}  Kg6 {[%clk 0:00:04]} 40. a6 {[%clk 0:00:46]}  Ra3+ {[%clk 0:00:04]} 41. Kg2 {[%clk 0:00:42]}  Ra2+ {[%clk 0:00:03]} 42. Kf3 {[%clk 0:00:40]}  Ra3+ {[%clk 0:00:04]} 43. Re3 {[%clk 0:00:39]}  Ra5 {[%clk 0:00:02]} 44. Bc4 {[%clk 0:00:33]}  Kg5 {[%clk 0:00:03]} 45. Re7 {[%clk 0:00:30]}  Kf5 {[%clk 0:00:02]} 46. Bd3+ {[%clk 0:00:28]}  Kg5 {[%clk 0:00:03]} 47. Rg7+ {[%clk 0:00:27]}  Kh6 {[%clk 0:00:03]} 48. Rf7 {[%clk 0:00:22]}  Nd5 {[%clk 0:00:02]} 49. Rxh7+ {[%clk 0:00:19]}  Kg5 {[%clk 0:00:03]} 50. Rf7 {[%clk 0:00:18]}  Nb6 {[%clk 0:00:01]} 51. Kg3 {[%clk 0:00:17]}  Nd5 {[%clk 0:00:01]} 52. h4+ {[%clk 0:00:17]}  Kh5 {[%clk 0:00:02]} 53. Rh7# {[%clk 0:00:17]} 1-0


[Site "https://www.chess.com"]

[Event "Titled Tuesday Blitz June 13 Early 2023"]
[White "Gracia Alvarez, Gerardo Antonio"]
[Black "Blackwhite017"]
[WhiteFideId "5109124"]
[WhiteElo "2160"]
[BlackElo "2136"]
[Result "1/2-1/2"]
[Round "7"]
[TimeControl "180+2"]
[Date "2023.06.13"]
[WhiteClock "0:00:03"]
[BlackClock "0:00:09"]
[Board "166"]

1. e4 {[%clk 0:03:00]}  c5 {[%clk 0:03:00]} 2. Nf3 {[%clk 0:02:57]}  d6 {[%clk 0:03:00]} 3. d4 {[%clk 0:02:57]}  cxd4 {[%clk 0:03:01]} 4. Qxd4 {[%clk 0:02:57]}  Nd7 {[%clk 0:03:00]} 5. Be2 {[%clk 0:02:53]}  Ngf6 {[%clk 0:02:59]} 6. O-O {[%clk 0:02:53]}  g6 {[%clk 0:02:59]} 7. c4 {[%clk 0:02:51]}  Bg7 {[%clk 0:02:59]} 8. h3 {[%clk 0:02:50]}  O-O {[%clk 0:03:00]} 9. Qe3 {[%clk 0:02:50]}  b6 {[%clk 0:02:56]} 10. Nc3 {[%clk 0:02:49]}  Bb7 {[%clk 0:02:53]} 11. Rd1 {[%clk 0:02:48]}  a6 {[%clk 0:02:51]} 12. Bd2 {[%clk 0:02:47]}  Qb8 {[%clk 0:02:37]} 13. Be1 {[%clk 0:02:45]}  Rc8 {[%clk 0:02:37]} 14. Rac1 {[%clk 0:02:42]}  Nc5 {[%clk 0:02:18]} 15. Nd2 {[%clk 0:02:29]}  Bc6 {[%clk 0:02:04]} 16. b4 {[%clk 0:02:18]}  Ncd7 {[%clk 0:01:57]} 17. Nb3 {[%clk 0:02:06]}  a5 {[%clk 0:01:43]} 18. a3 {[%clk 0:02:01]}  axb4 {[%clk 0:01:20]} 19. axb4 {[%clk 0:02:02]}  Ra3 {[%clk 0:01:20]} 20. Rb1 {[%clk 0:02:00]}  Qa8 {[%clk 0:01:15]} 21. f3 {[%clk 0:01:58]}  Ne8 {[%clk 0:00:56]} 22. Nd4 {[%clk 0:01:56]}  Bb7 {[%clk 0:00:44]} 23. Ndb5 {[%clk 0:01:47]}  Ra6 {[%clk 0:00:39]} 24. Rdc1 {[%clk 0:01:32]}  Nc7 {[%clk 0:00:38]} 25. Nd4 {[%clk 0:01:28]}  Ra3 {[%clk 0:00:18]} 26. Bd2 {[%clk 0:01:17]}  Ne6 {[%clk 0:00:18]} 27. Nxe6 {[%clk 0:01:05]}  fxe6 {[%clk 0:00:19]} 28. Qf2 {[%clk 0:01:02]}  Ba6 {[%clk 0:00:19]} 29. Nb5 {[%clk 0:00:57]}  Bxb5 {[%clk 0:00:18]} 30. cxb5 {[%clk 0:00:58]}  Rxc1+ {[%clk 0:00:18]} 31. Rxc1 {[%clk 0:00:57]}  Ra1 {[%clk 0:00:18]} 32. Qe1 {[%clk 0:00:38]}  Rxc1 {[%clk 0:00:18]} 33. Qxc1 {[%clk 0:00:37]}  Qa1 {[%clk 0:00:17]} 34. Qxa1 {[%clk 0:00:32]}  Bxa1 {[%clk 0:00:18]} 35. Kf2 {[%clk 0:00:30]}  Bd4+ {[%clk 0:00:18]} 36. Ke1 {[%clk 0:00:29]}  e5 {[%clk 0:00:18]} 37. Bc4+ {[%clk 0:00:28]}  Kg7 {[%clk 0:00:18]} 38. Be6 {[%clk 0:00:26]}  Nf6 {[%clk 0:00:18]} 39. g4 {[%clk 0:00:23]}  h5 {[%clk 0:00:17]} 40. Ke2 {[%clk 0:00:22]}  hxg4 {[%clk 0:00:17]} 41. hxg4 {[%clk 0:00:23]}  Ne8 {[%clk 0:00:17]} 42. Bd7 {[%clk 0:00:22]}  Nc7 {[%clk 0:00:17]} 43. Bc6 {[%clk 0:00:22]}  g5 {[%clk 0:00:17]} 44. Kd3 {[%clk 0:00:22]}  Kf6 {[%clk 0:00:17]} 45. Kc4 {[%clk 0:00:22]}  Ne6 {[%clk 0:00:16]} 46. Bd7 {[%clk 0:00:20]}  Nf4 {[%clk 0:00:15]} 47. Bxf4 {[%clk 0:00:08]}  gxf4 {[%clk 0:00:11]} 48. Kd3 {[%clk 0:00:07]}  Bg1 {[%clk 0:00:11]} 49. Bc8 {[%clk 0:00:05]}  Be3 {[%clk 0:00:11]} 50. Bb7 {[%clk 0:00:05]}  Bg1 {[%clk 0:00:10]} 51. Bd5 {[%clk 0:00:04]}  Bf2 {[%clk 0:00:10]} 52. Bb3 {[%clk 0:00:05]}  Be1 {[%clk 0:00:09]} 53. Kc4 {[%clk 0:00:05]}  e6 {[%clk 0:00:08]} 54. Ba2 {[%clk 0:00:02]}  Bh4 {[%clk 0:00:08]} 55. Bb3 {[%clk 0:00:02]}  Be1 {[%clk 0:00:08]} 56. Ba2 {[%clk 0:00:02]}  Bh4 {[%clk 0:00:08]} 57. Bb3 {[%clk 0:00:03]}  Be1 {[%clk 0:00:09]} 1/2-1/2


[Site "https://www.chess.com"]

[Event "Titled Tuesday Blitz June 13 Early 2023"]
[White "Topalov, Aleksandar"]
[Black "Semenova, Alina"]
[WhiteFideId "925659"]
[BlackFideId "24113875"]
[WhiteElo "2151"]
[BlackElo "1833"]
[Result "1/2-1/2"]
[Round "7"]
[TimeControl "180+2"]
[Date "2023.06.13"]
[WhiteClock "0:01:14"]
[BlackClock "0:01:22"]
[Board "167"]

1. b3 {[%clk 0:03:00]}  d5 {[%clk 0:02:57]} 2. Bb2 {[%clk 0:03:01]}  e6 {[%clk 0:02:58]} 3. Nf3 {[%clk 0:03:01]}  Nf6 {[%clk 0:02:58]} 4. e3 {[%clk 0:03:01]}  Be7 {[%clk 0:02:58]} 5. d4 {[%clk 0:03:01]}  O-O {[%clk 0:02:58]} 6. Nbd2 {[%clk 0:03:01]}  c5 {[%clk 0:02:58]} 7. Bd3 {[%clk 0:03:02]}  Nbd7 {[%clk 0:02:58]} 8. O-O {[%clk 0:02:58]}  b6 {[%clk 0:02:59]} 9. Ne5 {[%clk 0:02:58]}  Bb7 {[%clk 0:02:58]} 10. f4 {[%clk 0:02:58]}  Ne4 {[%clk 0:02:58]} 11. Rf3 {[%clk 0:02:58]}  f6 {[%clk 0:02:54]} 12. Nxd7 {[%clk 0:02:54]}  Qxd7 {[%clk 0:02:52]} 13. Rh3 {[%clk 0:02:52]}  g6 {[%clk 0:02:44]} 14. Qg4 {[%clk 0:02:43]}  f5 {[%clk 0:02:41]} 15. Qe2 {[%clk 0:02:37]}  Bf6 {[%clk 0:02:38]} 16. Nf3 {[%clk 0:02:33]}  Rac8 {[%clk 0:02:27]} 17. Ne5 {[%clk 0:02:28]}  Bxe5 {[%clk 0:02:25]} 18. dxe5 {[%clk 0:02:20]}  Qc7 {[%clk 0:02:22]} 19. c4 {[%clk 0:02:12]}  Qd7 {[%clk 0:01:48]} 20. Rd1 {[%clk 0:02:08]}  Qe7 {[%clk 0:01:45]} 21. Rf3 {[%clk 0:02:06]}  Rfd8 {[%clk 0:01:44]} 22. Rff1 {[%clk 0:02:04]}  dxc4 {[%clk 0:01:30]} 23. Bxc4 {[%clk 0:02:03]}  Bd5 {[%clk 0:01:30]} 24. Ba6 {[%clk 0:01:43]}  Bb7 {[%clk 0:01:24]} 25. Bc4 {[%clk 0:01:42]}  Bd5 {[%clk 0:01:23]} 26. Ba6 {[%clk 0:01:16]}  Bb7 {[%clk 0:01:22]} 27. Bc4 {[%clk 0:01:14]} 1/2-1/2


[Site "https://www.chess.com"]

[Event "Titled Tuesday Blitz June 13 Early 2023"]
[White "Miller, Luke C"]
[Black "Castillo Pena, Patricia Evarista"]
[WhiteFideId "2096935"]
[BlackFideId "6412106"]
[WhiteElo "1836"]
[BlackElo "1859"]
[Result "1-0"]
[Round "7"]
[TimeControl "180+2"]
[Date "2023.06.13"]
[WhiteClock "0:00:09"]
[BlackClock "0:00:03"]
[Board "168"]

1. e4 {[%clk 0:03:00]}  c5 {[%clk 0:02:58]} 2. Nf3 {[%clk 0:02:59]}  d6 {[%clk 0:02:58]} 3. d4 {[%clk 0:03:00]}  cxd4 {[%clk 0:02:59]} 4. Nxd4 {[%clk 0:03:00]}  Nf6 {[%clk 0:02:59]} 5. Nc3 {[%clk 0:03:01]}  a6 {[%clk 0:02:59]} 6. Bg5 {[%clk 0:02:59]}  e6 {[%clk 0:02:58]} 7. f4 {[%clk 0:03:00]}  h6 {[%clk 0:02:57]} 8. Bh4 {[%clk 0:02:59]}  Qb6 {[%clk 0:02:57]} 9. Qd3 {[%clk 0:02:56]}  Qxb2 {[%clk 0:02:48]} 10. Rb1 {[%clk 0:02:57]}  Qa3 {[%clk 0:02:48]} 11. e5 {[%clk 0:02:54]}  dxe5 {[%clk 0:02:44]} 12. fxe5 {[%clk 0:02:55]}  Nfd7 {[%clk 0:02:27]} 13. Nxe6 {[%clk 0:02:48]}  Bb4 {[%clk 0:01:44]} 14. Nc7+ {[%clk 0:00:58]}  Kf8 {[%clk 0:01:40]} 15. Nd5 {[%clk 0:00:44]}  Bxc3+ {[%clk 0:01:25]} 16. Nxc3 {[%clk 0:00:42]}  Nc6 {[%clk 0:01:16]} 17. e6 {[%clk 0:00:32]}  fxe6 {[%clk 0:01:00]} 18. Be2 {[%clk 0:00:30]}  Nce5 {[%clk 0:00:56]} 19. O-O+ {[%clk 0:00:27]}  Kg8 {[%clk 0:00:54]} 20. Qg3 {[%clk 0:00:24]}  Qc5+ {[%clk 0:00:49]} 21. Kh1 {[%clk 0:00:23]}  Kh7 {[%clk 0:00:30]} 22. Rbe1 {[%clk 0:00:16]}  Rf8 {[%clk 0:00:25]} 23. Ne4 {[%clk 0:00:15]}  Qxc2 {[%clk 0:00:19]} 24. Rxf8 {[%clk 0:00:15]}  Nxf8 {[%clk 0:00:18]} 25. Qxe5 {[%clk 0:00:16]}  Bd7 {[%clk 0:00:14]} 26. Bg3 {[%clk 0:00:14]}  Bc6 {[%clk 0:00:13]} 27. Bf3 {[%clk 0:00:14]}  Ng6 {[%clk 0:00:13]} 28. Qd4 {[%clk 0:00:13]}  Rf8 {[%clk 0:00:11]} 29. Qe3 {[%clk 0:00:13]}  Qxa2 {[%clk 0:00:09]} 30. h4 {[%clk 0:00:13]}  Bxe4 {[%clk 0:00:07]} 31. Bxe4 {[%clk 0:00:13]}  h5 {[%clk 0:00:05]} 32. Qg5 {[%clk 0:00:12]}  Rf6 {[%clk 0:00:04]} 33. Qxh5+ {[%clk 0:00:12]}  Kg8 {[%clk 0:00:05]} 34. Bxg6 {[%clk 0:00:13]}  Rxg6 {[%clk 0:00:05]} 35. Qxg6 {[%clk 0:00:11]}  Qd2 {[%clk 0:00:04]} 36. Qxe6+ {[%clk 0:00:11]}  Kh8 {[%clk 0:00:04]} 37. Qe8+ {[%clk 0:00:08]}  Kh7 {[%clk 0:00:04]} 38. Qh5+ {[%clk 0:00:09]}  Kg8 {[%clk 0:00:03]} 39. Re8# {[%clk 0:00:09]} 1-0


[Site "https://www.chess.com"]

[Event "Titled Tuesday Blitz June 13 Early 2023"]
[White "Vidruska, Renate"]
[Black "Balla, Tamas-Kristof"]
[WhiteFideId "11601841"]
[BlackFideId "1208497"]
[WhiteElo "1976"]
[BlackElo "2334"]
[Result "0-1"]
[Round "7"]
[TimeControl "180+2"]
[Date "2023.06.13"]
[WhiteClock "0:00:17"]
[BlackClock "0:00:22"]
[Board "170"]

1. e4 {[%clk 0:02:56]}  c5 {[%clk 0:02:59]} 2. Nf3 {[%clk 0:02:55]}  Nc6 {[%clk 0:02:55]} 3. d4 {[%clk 0:02:55]}  cxd4 {[%clk 0:02:56]} 4. Nxd4 {[%clk 0:02:55]}  e5 {[%clk 0:02:55]} 5. Nf3 {[%clk 0:02:54]}  Nf6 {[%clk 0:02:54]} 6. Nbd2 {[%clk 0:02:54]}  d5 {[%clk 0:02:48]} 7. exd5 {[%clk 0:02:53]}  Qxd5 {[%clk 0:02:48]} 8. Bc4 {[%clk 0:02:53]}  Qc5 {[%clk 0:02:43]} 9. O-O {[%clk 0:02:52]}  Be7 {[%clk 0:02:40]} 10. Re1 {[%clk 0:02:51]}  Bg4 {[%clk 0:02:35]} 11. h3 {[%clk 0:02:50]}  Bh5 {[%clk 0:02:28]} 12. Be2 {[%clk 0:02:42]}  O-O {[%clk 0:02:27]} 13. c3 {[%clk 0:02:41]}  Rfd8 {[%clk 0:02:25]} 14. Qa4 {[%clk 0:02:41]}  a6 {[%clk 0:02:07]} 15. Qc4 {[%clk 0:02:36]}  Qb6 {[%clk 0:02:06]} 16. Qb3 {[%clk 0:02:34]}  Qc7 {[%clk 0:02:01]} 17. Nc4 {[%clk 0:02:23]}  e4 {[%clk 0:01:59]} 18. Nh2 {[%clk 0:02:15]}  Bxe2 {[%clk 0:01:58]} 19. Rxe2 {[%clk 0:02:14]}  Bd6 {[%clk 0:01:52]} 20. Nxd6 {[%clk 0:02:13]}  Rxd6 {[%clk 0:01:50]} 21. Bf4 {[%clk 0:02:11]}  Rad8 {[%clk 0:01:25]} 22. Bxd6 {[%clk 0:02:10]}  Qxd6 {[%clk 0:01:26]} 23. Rae1 {[%clk 0:02:10]}  Ne5 {[%clk 0:01:25]} 24. Qxb7 {[%clk 0:01:47]}  Nd3 {[%clk 0:01:24]} 25. Rd1 {[%clk 0:01:42]}  Rb8 {[%clk 0:01:13]} 26. Qa7 {[%clk 0:01:25]}  Qf8 {[%clk 0:01:06]} 27. Qxa6 {[%clk 0:01:19]}  Nf4 {[%clk 0:01:05]} 28. Red2 {[%clk 0:01:15]}  N6h5 {[%clk 0:00:58]} 29. Qa7 {[%clk 0:01:08]}  Re8 {[%clk 0:00:54]} 30. Qd7 {[%clk 0:01:07]}  Nf6 {[%clk 0:00:50]} 31. Qd6 {[%clk 0:01:00]}  Qxd6 {[%clk 0:00:42]} 32. Rxd6 {[%clk 0:00:59]}  h6 {[%clk 0:00:36]} 33. Ng4 {[%clk 0:00:58]}  Nh7 {[%clk 0:00:33]} 34. Ne3 {[%clk 0:00:57]}  Ng5 {[%clk 0:00:33]} 35. h4 {[%clk 0:00:55]}  Nge6 {[%clk 0:00:33]} 36. g3 {[%clk 0:00:54]}  Ng6 {[%clk 0:00:33]} 37. c4 {[%clk 0:00:51]}  Ne5 {[%clk 0:00:33]} 38. b4 {[%clk 0:00:48]}  Ra8 {[%clk 0:00:31]} 39. b5 {[%clk 0:00:38]}  Rxa2 {[%clk 0:00:31]} 40. b6 {[%clk 0:00:39]}  Rb2 {[%clk 0:00:30]} 41. Nd5 {[%clk 0:00:32]}  Nc5 {[%clk 0:00:23]} 42. Rd8+ {[%clk 0:00:30]}  Kh7 {[%clk 0:00:23]} 43. Rc8 {[%clk 0:00:24]}  Ncd3 {[%clk 0:00:23]} 44. Nc3 {[%clk 0:00:19]}  Rxf2 {[%clk 0:00:20]} 45. Nxe4 {[%clk 0:00:19]}  Nf3+ {[%clk 0:00:21]} 46. Kh1 {[%clk 0:00:17]}  Rh2# {[%clk 0:00:22]} 0-1


[Site "https://www.chess.com"]